bitfinex/quotes_BTCUSD_20250428
["timestamp","ask_amount","ask_price","bid_price","bid_amount"]
[1745833470811,0.01976409,94894.0,94876.0,0.00788793]
[1745833471029,0.03188142,94893.0,94876.0,0.00888793]
[1745833471274,0.01976409,94892.0,94876.0,0.00888793]
[1745833471489,0.0476,94890.0,94876.0,0.00888793]
[1745833471699,0.00263491,94889.0,94876.0,0.00788793]
[1745833471905,0.01976409,94888.0,94872.0,0.10689014]
[1745833472115,0.01976409,94888.0,94877.0,0.00788841]
[1745833472116,0.00263491,94887.0,94877.0,0.00788841]
[1745833472316,0.06576409,94886.0,94876.0,0.001]
[1745833472532,0.0483,94884.0,94878.0,0.00788271]
[1745833472750,0.00263504,94883.0,94864.0,0.01264933]
[1745833472951,0.00263504,94883.0,94865.0,0.11743143]
[1745833473200,0.00263504,94883.0,94872.0,0.001]
[1745833473749,0.00263504,94883.0,94865.0,0.11953946]
[1745833473955,0.01263504,94883.0,94865.0,0.11953946]
[1745833474161,0.01263504,94883.0,94876.0,0.001]
[1745833474351,0.01263504,94883.0,94866.0,0.00787128]
[1745833474553,0.01263504,94883.0,94867.0,0.10689014]
[1745833474759,0.01263504,94883.0,94872.0,0.002]
[1745833475143,0.01263504,94883.0,94867.0,0.10689014]
[1745833475323,0.00263504,94883.0,94873.0,0.00787128]
[1745833475529,0.00263504,94883.0,94867.0,0.10689014]
[1745833475756,0.00263504,94883.0,94874.0,0.00787128]
[1745833475959,0.00263504,94883.0,94872.0,0.002]
[1745833476197,0.00263504,94883.0,94867.0,0.31771063]
[1745833476402,0.00263504,94883.0,94876.0,0.002]
[1745833476574,0.00263504,94883.0,94873.0,0.002]
[1745833476955,0.00263504,94883.0,94874.0,0.00991606]
[1745833477265,0.00263504,94883.0,94874.0,0.00791606]
[1745833477424,0.01363504,94883.0,94872.0,0.002]
[1745833477663,0.00263504,94883.0,94875.0,0.00791606]
[1745833477871,0.00263504,94883.0,94872.0,0.002]
[1745833478067,0.00263504,94883.0,94876.0,0.00791606]
[1745833478340,0.00263504,94883.0,94873.0,0.002]
[1745833478683,0.00263504,94883.0,94874.0,0.00791606]
[1745833478945,0.00263504,94883.0,94873.0,0.004]
[1745833479377,0.00263504,94883.0,94873.0,0.002]
[1745833479592,0.00263504,94883.0,94872.0,0.002]
[1745833479803,0.00263504,94883.0,94874.0,0.002]
[1745833480221,0.00263504,94883.0,94873.0,0.002]
[1745833480444,0.00263504,94883.0,94867.0,0.11743121]
[1745833480649,0.00263504,94883.0,94874.0,0.00791606]
[1745833480846,0.00263504,94883.0,94872.0,0.002]
[1745833481066,0.00263504,94883.0,94867.0,0.11743121]
[1745833481272,0.00263504,94883.0,94874.0,0.002]
[1745833482339,0.00263504,94883.0,94874.0,0.004]
[1745833484075,0.0008488,94920.0,94883.0,0.01053929]
[1745833484298,0.0481,94898.0,94890.0,0.17326605]
[1745833484508,0.00263465,94897.0,94884.0,0.00792046]
[1745833485359,0.00263465,94897.0,94884.0,0.22924319]
[1745833485564,0.05073467,94898.0,94886.0,0.01053896]
[1745833485774,0.00010117,94897.0,94884.0,0.00792046]
[1745833485973,0.00263467,94896.0,94890.0,0.001]
[1745833486222,0.00263467,94896.0,94884.0,0.00992046]
[1745833486373,0.00263467,94896.0,94884.0,0.01092046]
[1745833487106,0.00263467,94895.0,94872.0,0.2108087]
[1745833487240,0.00273584,94897.0,94885.0,0.00653574]
[1745833487631,0.00273584,94897.0,94886.0,0.0065386]
[1745833488052,0.00273584,94897.0,94886.0,0.02534504]
[1745833488287,0.00273584,94897.0,94886.0,0.0065386]
[1745833488491,0.00273584,94897.0,94886.0,0.02511218]
[1745833488693,0.00273584,94897.0,94890.0,0.001]
[1745833489074,0.00273584,94897.0,94885.0,0.001]
[1745833489295,0.00273584,94897.0,94881.0,0.10689014]
[1745833489512,0.00273584,94897.0,94886.0,0.0075386]
[1745833489730,0.00273584,94897.0,94886.0,0.002]
[1745833489947,0.00273584,94897.0,94887.0,0.0065386]
[1745833492344,0.00273584,94897.0,94887.0,0.0075386]
[1745833498387,0.00010117,94897.0,94887.0,0.18080465]
[1745833498951,0.00010117,94897.0,94890.0,0.01053851]
[1745833499165,0.00010117,94897.0,94895.0,0.21075926]
[1745833499372,0.00010117,94897.0,94893.0,0.22130112]
[1745833499573,0.00010117,94897.0,94892.0,0.22130403]
[1745833499981,0.00010117,94897.0,94891.0,0.2213064]
[1745833500197,0.00010117,94897.0,94890.0,0.11742865]
[1745833500639,0.01110117,94897.0,94891.0,0.0105384]
[1745833500844,0.01110117,94897.0,94890.0,0.10789014]
[1745833501055,0.00010117,94897.0,94890.0,0.10689014]
[1745833501914,0.01110117,94897.0,94895.0,0.002]
[1745833502129,0.01110117,94897.0,94890.0,0.10789014]
[1745833502346,0.01110117,94897.0,94890.0,0.11842865]
[1745833502551,0.02210117,94897.0,94890.0,0.11942865]
[1745833502760,0.02210117,94897.0,94890.0,0.11842865]
[1745833502965,0.01110117,94897.0,94891.0,0.00186447]
[1745833503369,0.00010117,94897.0,94891.0,0.00186447]
[1745833503576,0.00010117,94897.0,94895.0,0.003]
[1745833503801,0.00010117,94897.0,94895.0,0.005]
[1745833503998,0.00010117,94897.0,94896.0,0.00186447]
[1745833505111,0.00010117,94897.0,94896.0,0.00486447]
[1745833505290,0.00010117,94897.0,94896.0,0.003]
[1745833505498,0.00010117,94897.0,94896.0,0.00486669]
[1745833505691,0.00010117,94897.0,94896.0,0.00686669]
[1745833506860,0.09310117,94897.0,94896.0,0.00686669]
[1745833507276,0.09310117,94897.0,94896.0,0.005]
[1745833519137,0.10275965,94897.0,94896.0,0.005]
[1745833519408,0.09310117,94897.0,94896.0,0.005]
[1745833519820,0.09310117,94897.0,94896.0,0.002]
[1745833520029,0.04720117,94897.0,94880.0,0.00809385]
[1745833520228,0.0486,94895.0,94868.0,0.01454085]
[1745833520443,0.0486,94895.0,94869.0,0.11329332]
[1745833520444,0.05306861,94894.0,94869.0,0.11329332]
[1745833522115,0.05606861,94894.0,94869.0,0.11329332]
[1745833523071,0.045,94893.0,94869.0,0.11329332]
[1745833523294,0.045,94891.0,94870.0,0.17326605]
[1745833523503,0.00263499,94890.0,94870.0,0.17326605]
[1745833524110,0.00263499,94890.0,94871.0,0.00189335]
[1745833524789,0.00263499,94890.0,94880.0,0.17326605]
[1745833525006,0.00263499,94890.0,94870.0,0.17326605]
[1745833525214,0.00463499,94890.0,94871.0,0.00449555]
[1745833525413,0.00463499,94890.0,94872.0,0.00142002]
[1745833525862,0.00763499,94890.0,94872.0,0.00142002]
[1745833526724,0.00663499,94890.0,94872.0,0.00142002]
[1745833527144,0.00763499,94890.0,94872.0,0.00142002]
[1745833527339,0.00763499,94890.0,94873.0,0.00468466]
[1745833527546,0.00363499,94890.0,94873.0,0.00468466]
[1745833527748,0.00563499,94890.0,94873.0,0.00468466]
[1745833527980,0.00563499,94890.0,94874.0,0.00142002]
[1745833528364,0.00463499,94890.0,94874.0,0.00142002]
[1745833528564,0.01246861,94890.0,94870.0,0.17326605]
[1745833528779,0.01546861,94890.0,94870.0,0.17326605]
[1745833529188,0.01246861,94890.0,94870.0,0.17326605]
[1745833529395,0.01546861,94890.0,94870.0,0.17326605]
[1745833529862,0.01446861,94890.0,94870.0,0.17326605]
[1745833530292,0.01546861,94890.0,94870.0,0.17326605]
[1745833530726,0.01346861,94890.0,94870.0,0.17326605]
[1745833530934,0.01546861,94890.0,94870.0,0.17326605]
[1745833531161,0.00563499,94890.0,94870.0,0.17326605]
[1745833531364,0.00563499,94890.0,94871.0,0.00142002]
[1745833532194,0.00263499,94890.0,94871.0,0.00142002]
[1745833532419,0.00363499,94890.0,94871.0,0.00142002]
[1745833532648,0.00563499,94890.0,94871.0,0.00142002]
[1745833534549,0.01556861,94890.0,94871.0,0.00142002]
[1745833534779,0.00563499,94890.0,94871.0,0.00142002]
[1745833537891,0.0972,94889.0,94871.0,0.00142002]
[1745833538094,0.0468,94887.0,94871.0,0.00142002]
[1745833538360,0.0468,94884.0,94871.0,0.00142002]
[1745833538552,0.00263498,94883.0,94868.0,0.00790111]
[1745833538718,0.00263498,94883.0,94872.0,0.00140669]
[1745833538934,0.00263498,94883.0,94868.0,0.10689014]
[1745833539135,0.00263498,94883.0,94873.0,0.00140447]
[1745833539436,0.00263498,94883.0,94874.0,0.00140447]
[1745833539809,0.00263498,94883.0,94868.0,0.11461301]
[1745833539995,0.00263498,94883.0,94875.0,0.00140447]
[1745833540206,0.0468,94881.0,94868.0,0.00772287]
[1745833540423,0.4338,94879.0,94868.0,0.00772287]
[1745833540637,0.0938,94877.0,94851.0,0.000849]
[1745833540861,0.09643548,94876.0,94868.0,0.00808264]
[1745833541065,0.0938,94875.0,94851.0,0.000849]
[1745833541271,0.0938,94873.0,94851.0,0.000849]
[1745833541487,0.04943548,94872.0,94851.0,0.000849]
[1745833541703,0.04943548,94872.0,94868.0,0.001]
[1745833542158,0.04943548,94872.0,94851.0,0.000849]
[1745833542390,0.0452,94870.0,94860.0,0.01858817]
[1745833542605,0.0452,94868.0,94851.0,0.001849]
[1745833542800,0.00263548,94867.0,94851.0,0.002849]
[1745833543012,0.00263548,94867.0,94851.0,0.001849]
[1745833543880,0.00263548,94867.0,94851.0,0.01003025]
[1745833544089,0.00263548,94867.0,94851.0,0.00903025]
[1745833544298,0.00263548,94867.0,94852.0,0.00637309]
[1745833545201,0.00963548,94867.0,94852.0,0.00637309]
[1745833545406,0.00263548,94867.0,94852.0,0.00637309]
[1745833545587,0.01563548,94867.0,94852.0,0.00737309]
[1745833545795,0.02679997,94867.0,94852.0,0.00737309]
[1745833546002,0.02079997,94867.0,94852.0,0.00737309]
[1745833546447,0.02079997,94867.0,94852.0,0.02616059]
[1745833546448,0.0452,94865.0,94852.0,0.02616059]
[1745833546662,0.05153582,94864.0,94852.0,0.02616059]
[1745833546870,0.0452,94863.0,94852.0,0.0197875]
[1745833547116,0.0452,94861.0,94852.0,0.0197875]
[1745833547327,0.0458,94859.0,94853.0,0.0063803]
[1745833547541,0.00263578,94858.0,94853.0,0.0063803]
[1745833548574,0.00263578,94858.0,94853.0,0.0073803]
[1745833549020,0.00263578,94858.0,94853.0,0.0093803]
[1745833549226,0.00263578,94858.0,94853.0,0.0103803]
[1745833553501,0.00263578,94858.0,94854.0,0.00532361]
[1745833553711,0.00263578,94858.0,94854.0,0.00642334]
[1745833553948,0.00263578,94858.0,94854.0,0.00219946]
[1745833554564,0.00263578,94858.0,94854.0,0.00109973]
[1745833554696,0.00363578,94858.0,94854.0,0.00709973]
[1745833555174,0.00363578,94858.0,94855.0,0.00422388]
[1745833556539,0.00363578,94858.0,94855.0,0.00622388]
[1745833556745,0.00263578,94858.0,94855.0,0.00622388]
[1745833556996,0.00363578,94858.0,94855.0,0.00722388]
[1745833557195,0.00363578,94858.0,94856.0,0.00109973]
[1745833558236,0.00263578,94858.0,94856.0,0.00109973]
[1745833559134,0.00363578,94858.0,94857.0,0.00422388]
[1745833560387,0.00263578,94858.0,94857.0,0.00422388]
[1745833560597,0.00363578,94858.0,94857.0,0.00622388]
[1745833560788,0.00363578,94858.0,94857.0,0.00822388]
[1745833561252,0.04913578,94858.0,94857.0,0.00822388]
[1745833561476,0.04913578,94858.0,94857.0,0.004]
[1745833561917,0.09793578,94858.0,94857.0,0.004]
[1745833564041,0.09344417,94858.0,94857.0,0.004]
[1745833564660,0.09466242,94858.0,94857.0,0.004]
[1745833565691,0.09344417,94858.0,94857.0,0.004]
[1745833570292,0.09344417,94858.0,94857.0,0.0021467]
[1745833573185,0.20033431,94858.0,94857.0,0.0021467]
[1745833573406,0.22221079,94858.0,94857.0,0.0021467]
[1745833573620,0.56221079,94858.0,94857.0,0.0021467]
[1745833574055,0.61147848,94858.0,94857.0,0.0021467]
[1745833574264,0.61147848,94858.0,94857.0,0.0001467]
[1745833574707,0.65869031,94857.0,94854.0,0.00109973]
[1745833574929,0.34,94855.0,94854.0,0.00109973]
[1745833575151,0.0105434,94846.0,94836.0,0.0004244]
[1745833575421,0.75256273,94844.0,94836.0,0.0004244]
[1745833575637,0.86755097,94844.0,94836.0,0.0004244]
[1745833576084,0.88724361,94844.0,94836.0,0.0004244]
[1745833576778,0.89124361,94844.0,94836.0,0.0004244]
[1745833577664,0.89424361,94844.0,94836.0,0.0004244]
[1745833578331,0.94424361,94844.0,94836.0,0.0004244]
[1745833578548,0.01054396,94841.0,94836.0,0.0004244]
[1745833578776,0.21499853,94840.0,94836.0,0.000516]
[1745833578994,0.0951,94838.0,94836.0,0.000516]
[1745833579202,0.54320839,94837.0,94836.0,0.000516]
[1745833579429,0.54199014,94837.0,94836.0,0.000516]
[1745833579652,0.56168278,94837.0,94836.0,0.000516]
[1745833579870,0.66857292,94837.0,94836.0,0.000516]
[1745833580345,0.56168278,94837.0,94836.0,0.000516]
[1745833580569,0.56368278,94837.0,94836.0,0.000516]
[1745833580781,0.56568278,94837.0,94836.0,0.000516]
[1745833582063,0.54599014,94837.0,94836.0,0.000516]
[1745833588120,0.20599014,94837.0,94836.0,0.000516]
[1745833588321,0.17570078,94837.0,94836.0,0.000516]
[1745833588458,0.15609014,94837.0,94836.0,0.000516]
[1745833588666,0.15730839,94837.0,94836.0,0.000516]
[1745833588868,0.00521825,94837.0,94836.0,0.000516]
[1745833589067,0.004,94837.0,94836.0,0.000516]
[1745833589896,0.002,94837.0,94836.0,0.000516]
[1745833590096,0.00121825,94855.0,94836.0,0.00623273]
[1745833590325,0.001,94837.0,94836.0,0.001516]
[1745833590794,0.001,94837.0,94836.0,0.00723273]
[1745833591002,0.00121825,94853.0,94836.0,0.00623273]
[1745833591202,0.10689014,94852.0,94836.0,0.00623273]
[1745833591403,0.002,94837.0,94836.0,0.000516]
[1745833591803,0.02404712,94851.0,94836.0,0.00623273]
[1745833592011,0.10689014,94850.0,94836.0,0.00623273]
[1745833592218,0.00121825,94849.0,94836.0,0.000516]
[1745833592412,0.10689014,94848.0,94836.0,0.000516]
[1745833592611,0.00121825,94847.0,94836.0,0.000516]
[1745833592809,0.001,94837.0,94836.0,0.002516]
[1745833593026,0.001,94837.0,94836.0,0.000516]
[1745833593350,0.001,94837.0,94836.0,0.051216]
[1745833593550,0.001,94837.0,94836.0,0.72919979]
[1745833593892,0.002,94851.0,94841.0,0.2]
[1745833594182,0.002,94851.0,94842.0,0.00090816]
[1745833594388,0.00121825,94871.0,94842.0,0.00090816]
[1745833594786,0.001,94847.0,94842.0,0.00090816]
[1745833595135,0.00121825,94871.0,94842.0,0.00090816]
[1745833595321,0.00121825,94871.0,94842.0,0.00290816]
[1745833595988,0.001,94851.0,94842.0,0.01834408]
[1745833596190,0.001,94851.0,94842.0,0.00290816]
[1745833596398,0.001,94851.0,94843.0,0.00542631]
[1745833596600,0.001,94851.0,94849.0,0.21086107]
[1745833596808,0.002,94857.0,94849.0,0.0454]
[1745833597279,0.001,94851.0,94849.0,0.0454]
[1745833597479,0.001,94857.0,94849.0,0.0454]
[1745833598027,0.008,94851.0,94850.0,0.00063443]
[1745833598474,0.017,94851.0,94849.0,0.0464]
[1745833598674,0.017,94851.0,94850.0,0.00513124]
[1745833599075,0.009,94851.0,94850.0,0.00513124]
[1745833599395,0.011,94857.0,94850.0,0.00513124]
[1745833599603,0.001,94857.0,94850.0,0.00513124]
[1745833600232,0.00121825,94856.0,94850.0,0.00513124]
[1745833600442,0.001,94851.0,94850.0,0.004]
[1745833600641,0.00121825,94856.0,94850.0,0.004]
[1745833600844,0.00121825,94856.0,94850.0,0.01252315]
[1745833601039,0.00121825,94856.0,94850.0,0.008]
[1745833601647,0.00123654,94857.0,94850.0,0.00476346]
[1745833602042,0.00023654,94857.0,94850.0,0.00376346]
[1745833602527,0.001,94851.0,94850.0,0.00376346]
[1745833602671,0.00023654,94857.0,94850.0,0.00871399]
[1745833603104,0.00123654,94857.0,94850.0,0.01171399]
[1745833603367,0.00123654,94857.0,94850.0,0.00871399]
[1745833603567,0.00094912,94857.0,94850.0,0.00871399]
[1745833603769,0.001,94851.0,94850.0,0.01171399]
[1745833604152,0.001,94851.0,94850.0,0.01991029]
[1745833604612,0.001,94851.0,94850.0,0.01691029]
[1745833604938,0.001,94851.0,94850.0,0.02091029]
[1745833605359,0.26428487,94860.0,94850.0,0.01391029]
[1745833605801,0.001,94851.0,94850.0,0.01271399]
[1745833605999,0.001,94851.0,94850.0,0.00971399]
[1745833606257,0.001,94851.0,94850.0,0.01492206]
[1745833606467,0.002,94851.0,94850.0,0.01792206]
[1745833606673,0.001,94851.0,94850.0,0.01792206]
[1745833606893,0.001,94851.0,94850.0,0.01892206]
[1745833607108,0.10689014,94859.0,94850.0,0.01592206]
[1745833607339,0.10689014,94859.0,94850.0,0.01492206]
[1745833607548,0.10689014,94859.0,94850.0,0.00971399]
[1745833607756,0.10689014,94859.0,94850.0,0.00871399]
[1745833609191,0.10789014,94859.0,94850.0,0.00871399]
[1745833609413,0.10889014,94859.0,94850.0,0.00971399]
[1745833615178,0.12850876,94859.0,94850.0,0.00995053]
[1745833615598,0.01961862,94858.0,94832.0,0.01681336]
[1745833615800,0.26428487,94850.0,94832.0,0.01685911]
[1745833615978,0.26428487,94850.0,94832.0,4.575e-05]
[1745833616766,0.26428487,94850.0,94832.0,0.00104575]
[1745833617177,0.26428487,94850.0,94832.0,4.575e-05]
[1745833617608,0.27528487,94850.0,94832.0,0.00104575]
[1745833617981,0.01961862,94849.0,94832.0,0.00104575]
[1745833618625,0.01961862,94849.0,94832.0,0.03232881]
[1745833619253,0.01961862,94848.0,94832.0,0.03232881]
[1745833619464,0.01961862,94848.0,94832.0,0.04008017]
[1745833619672,0.01961862,94847.0,94832.0,0.04008017]
[1745833620087,0.01961862,94847.0,94832.0,0.03908017]
[1745833620290,0.01961862,94847.0,94832.0,0.04008017]
[1745833620501,0.021,94849.0,94832.0,0.04008017]
[1745833620698,0.011,94849.0,94832.0,0.04008017]
[1745833620991,0.01968988,94848.0,94832.0,0.04008017]
[1745833621250,0.03068988,94847.0,94832.0,0.04008017]
[1745833621572,0.01968988,94846.0,94832.0,0.03908017]
[1745833621783,0.01968988,94846.0,94832.0,0.04008017]
[1745833622012,0.011,94849.0,94832.0,0.04008017]
[1745833622303,0.021,94849.0,94832.0,0.04008017]
[1745833622463,0.021,94849.0,94833.0,0.00526631]
[1745833622853,0.009,94846.0,94833.0,0.00526631]
[1745833623882,0.0468,94853.0,94833.0,0.00526631]
[1745833624089,0.011,94846.0,94833.0,0.00626631]
[1745833624895,0.01,94846.0,94833.0,0.00526631]
[1745833626762,0.01,94846.0,94833.0,0.00626631]
[1745833627184,0.01,94846.0,94833.0,0.00526631]
[1745833627424,0.021,94846.0,94833.0,0.00626631]
[1745833628943,0.03846901,94846.0,94833.0,0.00626631]
[1745833629367,0.021,94846.0,94833.0,0.00626631]
[1745833630511,0.021,94846.0,94833.0,0.01681116]
[1745833630743,0.021,94846.0,94833.0,0.00626631]
[1745833630961,0.021,94846.0,94836.0,0.01054451]
[1745833631379,0.021,94846.0,94840.0,0.22142509]
[1745833631587,0.021,94846.0,94839.0,0.27022788]
[1745833631800,0.021,94846.0,94841.0,0.00062777]
[1745833632017,0.011,94846.0,94840.0,0.00273858]
[1745833632226,0.011,94846.0,94842.0,0.00375948]
[1745833632450,0.021,94846.0,94840.0,0.00210859]
[1745833632664,0.01,94846.0,94840.0,0.00210859]
[1745833632872,0.01,94846.0,94841.0,0.01054396]
[1745833633073,0.021,94846.0,94841.0,0.01054396]
[1745833633281,0.021,94846.0,94841.0,0.22142106]
[1745833633559,0.0469,94866.0,94840.0,0.01054407]
[1745833633796,0.0469,94866.0,94840.0,0.01265265]
[1745833634043,0.001,94846.0,94841.0,0.001]
[1745833634628,0.05914,94861.0,94840.0,0.00210858]
[1745833634930,0.06014,94861.0,94841.0,0.0006611]
[1745833635469,0.001,94846.0,94841.0,0.0016611]
[1745833635898,0.001,94846.0,94841.0,0.0036611]
[1745833636783,0.0495,94861.0,94841.0,0.0026611]
[1745833636980,0.0505,94861.0,94841.0,0.0036611]
[1745833637113,0.0505,94861.0,94841.0,0.0026611]
[1745833637535,0.001,94846.0,94841.0,0.0016611]
[1745833637740,0.0495,94861.0,94841.0,0.0006611]
[1745833638142,0.0505,94861.0,94841.0,0.0016611]
[1745833638384,0.0495,94861.0,94841.0,0.0006611]
[1745833638823,0.0495,94861.0,94841.0,0.0016611]
[1745833638824,0.001,94846.0,94841.0,0.0016611]
[1745833640097,0.001,94846.0,94841.0,0.0036611]
[1745833640485,0.0495,94861.0,94841.0,0.0026611]
[1745833640709,0.0495,94861.0,94841.0,0.0036611]
[1745833641010,0.0505,94861.0,94841.0,0.0026611]
[1745833641445,0.001,94846.0,94841.0,0.0036611]
[1745833641646,0.0495,94861.0,94841.0,0.0026611]
[1745833642061,0.0505,94861.0,94841.0,0.0016611]
[1745833642842,0.0515,94861.0,94841.0,0.0016611]
[1745833643259,0.0505,94861.0,94841.0,0.0006611]
[1745833643699,0.001,94846.0,94841.0,0.0016611]
[1745833643980,0.0505,94861.0,94841.0,0.0006611]
[1745833644216,0.0515,94861.0,94841.0,0.0016611]
[1745833644614,0.00984,94860.0,94841.0,0.0016611]
[1745833645041,0.00984,94860.0,94841.0,0.00376967]
[1745833645204,0.00984,94860.0,94841.0,0.01631363]
[1745833645540,0.00984,94860.0,94841.0,0.00576967]
[1745833645751,0.00984,94860.0,94841.0,0.00376967]
[1745833645966,0.01084,94860.0,94841.0,0.00376967]
[1745833646206,0.01084,94860.0,94841.0,0.00276967]
[1745833646413,0.010824,94859.0,94841.0,0.00276967]
[1745833646653,0.010824,94859.0,94841.0,0.00376967]
[1745833647271,0.010824,94859.0,94842.0,0.00372309]
[1745833647471,0.0494,94858.0,94842.0,0.00372309]
[1745833647688,0.0494,94858.0,94843.0,0.00065666]
[1745833649697,0.0504,94858.0,94843.0,0.00065666]
[1745833650102,0.0514,94858.0,94843.0,0.00065666]
[1745833650701,0.0524,94858.0,94843.0,0.00165666]
[1745833654574,0.01970003,94857.0,94843.0,0.00165666]
[1745833654981,0.0524,94858.0,94843.0,0.00165666]
[1745833655577,0.0514,94858.0,94843.0,0.00165666]
[1745833655820,0.0494,94858.0,94843.0,0.00065666]
[1745833656137,0.001,94857.0,94843.0,0.00165666]
[1745833656521,0.01970472,94856.0,94843.0,0.00065666]
[1745833656721,0.01970472,94856.0,94843.0,0.00165666]
[1745833656899,0.01970472,94856.0,94843.0,0.00065666]
[1745833657101,0.0504,94858.0,94843.0,0.00065666]
[1745833657392,0.001,94857.0,94843.0,0.00165666]
[1745833657573,0.001,94857.0,94843.0,0.00065666]
[1745833657574,0.02070778,94857.0,94843.0,0.00065666]
[1745833657774,0.02070778,94857.0,94843.0,0.00165666]
[1745833657948,0.001,94856.0,94843.0,0.00165666]
[1745833658999,0.01970778,94857.0,94843.0,0.00065666]
[1745833659439,0.01970778,94857.0,94843.0,0.00165666]
[1745833659640,0.01970778,94857.0,94843.0,0.00065666]
[1745833659850,0.01970778,94857.0,94843.0,0.00165666]
[1745833660005,0.001,94856.0,94843.0,0.00165666]
[1745833660353,0.17338247,94853.0,94843.0,0.00065666]
[1745833660557,0.17338247,94853.0,94843.0,0.00165666]
[1745833660773,0.01970778,94852.0,94843.0,0.00165666]
[1745833661443,0.17338247,94853.0,94843.0,0.00165666]
[1745833662120,0.17338247,94853.0,94843.0,0.00265666]
[1745833662332,0.01973367,94852.0,94844.0,0.00372673]
[1745833662765,0.01973367,94852.0,94845.0,0.0006411]
[1745833662962,0.17438247,94853.0,94845.0,0.0006411]
[1745833663170,0.17438247,94853.0,94843.0,0.001]
[1745833663374,0.17438247,94853.0,94840.0,0.00210856]
[1745833663580,0.001,94852.0,94844.0,0.001]
[1745833663760,0.17338247,94853.0,94844.0,0.001]
[1745833663958,0.17338247,94853.0,94845.0,0.001]
[1745833664168,0.17438247,94853.0,94845.0,0.001]
[1745833664420,0.17438247,94853.0,94840.0,0.001]
[1745833664572,0.17538247,94853.0,94841.0,0.00210856]
[1745833665147,0.17538247,94853.0,94845.0,0.001]
[1745833665843,0.17338247,94853.0,94845.0,0.001]
[1745833666183,0.17438247,94853.0,94845.0,0.002]
[1745833666615,0.17438247,94853.0,94845.0,0.001]
[1745833667053,0.01972959,94852.0,94845.0,0.001]
[1745833667454,0.17438247,94853.0,94845.0,0.001]
[1745833668006,0.17438247,94853.0,94845.0,0.002]
[1745833668659,0.01972949,94852.0,94845.0,0.002]
[1745833669115,0.17338247,94853.0,94845.0,0.001]
[1745833669322,0.001,94852.0,94845.0,0.002]
[1745833670420,0.001,94852.0,94845.0,0.001]
[1745833670635,0.17338247,94853.0,94841.0,0.00210856]
[1745833670838,0.17438247,94853.0,94845.0,0.002]
[1745833672491,0.17338247,94853.0,94845.0,0.001]
[1745833673175,0.001,94852.0,94845.0,0.001]
[1745833673612,0.17338247,94853.0,94841.0,0.00310856]
[1745833673847,0.17338247,94853.0,94842.0,0.00435727]
[1745833674056,0.17438247,94853.0,94845.0,0.001]
[1745833674279,0.17338247,94853.0,94845.0,0.001]
[1745833674538,0.01973216,94852.0,94845.0,0.001]
[1745833674710,0.02073216,94852.0,94845.0,0.001]
[1745833675277,0.001,94852.0,94845.0,0.001]
[1745833675969,0.0494,94858.0,94842.0,0.00310855]
[1745833676190,0.01973395,94857.0,94842.0,0.00210855]
[1745833676410,0.001,94853.0,94845.0,0.001]
[1745833676624,0.01973395,94857.0,94845.0,0.001]
[1745833676866,0.001,94852.0,94845.0,0.002]
[1745833677105,0.001,94852.0,94839.0,0.00210855]
[1745833677320,0.001,94852.0,94842.0,0.001]
[1745833677749,0.001,94857.0,94842.0,0.00210855]
[1745833677907,0.002,94857.0,94845.0,0.001]
[1745833678057,0.002,94857.0,94845.0,0.002]
[1745833678702,0.01973461,94856.0,94845.0,0.002]
[1745833679114,0.01973461,94856.0,94845.0,0.001]
[1745833679318,0.001,94852.0,94842.0,0.001]
[1745833679745,0.001,94852.0,94843.0,0.00435442]
[1745833679975,0.001,94852.0,94845.0,0.001]
[1745833680175,0.001,94856.0,94843.0,0.00435442]
[1745833680373,0.001,94856.0,94842.0,0.001]
[1745833680576,0.001,94852.0,94844.0,0.00436585]
[1745833681247,0.002,94852.0,94845.0,0.002]
[1745833681561,0.002,94852.0,94846.0,0.0006411]
[1745833681978,0.002,94852.0,94845.0,0.002]
[1745833682421,0.0494,94858.0,94846.0,0.00371332]
[1745833682627,0.001,94852.0,94846.0,0.00371332]
[1745833683232,0.002,94852.0,94845.0,0.001]
[1745833683491,0.047,94865.0,94851.0,0.2108563]
[1745833683707,0.001,94852.0,94851.0,0.01265119]
[1745833683907,0.001,94852.0,94851.0,0.2235067]
[1745833684113,0.047,94865.0,94849.0,0.01054307]
[1745833684323,0.047,94865.0,94850.0,0.00210834]
[1745833684762,0.047,94865.0,94851.0,0.00210834]
[1745833684964,0.047,94865.0,94852.0,0.00063887]
[1745833686240,0.0505,94861.0,94852.0,0.00363887]
[1745833687497,0.0505,94861.0,94852.0,0.00463887]
[1745833692481,0.0505,94861.0,94853.0,0.00372724]
[1745833693118,0.0505,94861.0,94854.0,0.00063887]
[1745833693560,0.0495,94861.0,94848.0,0.00210833]
[1745833693775,0.0495,94861.0,94853.0,0.001]
[1745833694197,0.0495,94861.0,94848.0,0.00210833]
[1745833694604,0.0495,94861.0,94854.0,0.001]
[1745833694807,0.0625,94861.0,94854.0,0.001]
[1745833695784,0.0625,94861.0,94848.0,0.00310833]
[1745833696001,0.0495,94861.0,94848.0,0.00210833]
[1745833696185,0.0615,94861.0,94854.0,0.001]
[1745833696413,0.0625,94861.0,94854.0,0.001]
[1745833696746,0.0463,94860.0,94854.0,0.001]
[1745833697573,0.0463,94860.0,94848.0,0.00210834]
[1745833697958,0.0463,94860.0,94854.0,0.001]
[1745833698383,0.0473,94860.0,94854.0,0.003]
[1745833699531,0.0473,94860.0,94854.0,0.001]
[1745833699532,0.0463,94860.0,94854.0,0.001]
[1745833699726,0.0463,94860.0,94848.0,0.00210834]
[1745833699907,0.0583,94860.0,94854.0,0.001]
[1745833700317,0.0593,94860.0,94854.0,0.003]
[1745833700657,0.0463,94860.0,94848.0,0.00210834]
[1745833700859,0.0583,94860.0,94848.0,0.00310834]
[1745833701062,0.0703,94860.0,94849.0,0.00432741]
[1745833701265,0.0703,94860.0,94850.0,0.00210834]
[1745833701417,0.0593,94860.0,94854.0,0.002]
[1745833701749,0.0593,94860.0,94854.0,0.003]
[1745833702744,0.0463,94860.0,94848.0,0.00210834]
[1745833702928,0.0583,94860.0,94848.0,0.00310834]
[1745833703132,0.0583,94860.0,94850.0,0.001]
[1745833703340,0.0463,94860.0,94851.0,0.00210834]
[1745833703532,0.0473,94860.0,94854.0,0.002]